[Event "Titled Tuesday Blitz June 21 Early 2022"]
[White "Rohith Krishna S"]
[Black "Timofeev, Artyom"]
[WhiteFideId "46617051"]
[BlackFideId "4140419"]
[WhiteElo "2117"]
[BlackElo "2578"]
[Result "0-1"]
[Round "09"]
[TimeControl "180+1"]
[Date "2022.06.21"]
[WhiteClock "0:00:58"]
[BlackClock "0:01:00"]

1. e4 {[%clk 0:03:00]}  c6 {[%clk 0:02:59]} 2. Nf3 {[%clk 0:02:59]}  d5 {[%clk 0:02:59]} 3. d3 {[%clk 0:03:00]}  dxe4 {[%clk 0:02:58]} 4. dxe4 {[%clk 0:03:00]}  Qxd1+ {[%clk 0:02:59]} 5. Kxd1 {[%clk 0:03:01]}  Nd7 {[%clk 0:02:57]} 6. Be3 {[%clk 0:02:59]}  g6 {[%clk 0:02:56]} 7. Nbd2 {[%clk 0:02:58]}  Bg7 {[%clk 0:02:56]} 8. c3 {[%clk 0:02:59]}  Ngf6 {[%clk 0:02:55]} 9. Kc2 {[%clk 0:02:58]}  Ng4 {[%clk 0:02:54]} 10. Re1 {[%clk 0:02:57]}  Nxe3+ {[%clk 0:02:53]} 11. Rxe3 {[%clk 0:02:58]}  a5 {[%clk 0:02:50]} 12. Bc4 {[%clk 0:02:53]}  Nc5 {[%clk 0:02:45]} 13. Rhe1 {[%clk 0:02:46]}  b5 {[%clk 0:02:44]} 14. Bf1 {[%clk 0:02:46]}  e5 {[%clk 0:02:42]} 15. Nb3 {[%clk 0:02:43]}  Ne6 {[%clk 0:02:40]} 16. Nfd2 {[%clk 0:02:41]}  Ke7 {[%clk 0:02:37]} 17. g3 {[%clk 0:02:40]}  Rd8 {[%clk 0:02:33]} 18. Rd3 {[%clk 0:02:39]}  Rxd3 {[%clk 0:02:27]} 19. Bxd3 {[%clk 0:02:40]}  h5 {[%clk 0:02:26]} 20. h4 {[%clk 0:02:38]}  Bh6 {[%clk 0:02:23]} 21. Nf1 {[%clk 0:02:37]}  a4 {[%clk 0:02:20]} 22. Nbd2 {[%clk 0:02:36]}  Nc5 {[%clk 0:02:20]} 23. Be2 {[%clk 0:02:33]}  Be6 {[%clk 0:02:13]} 24. Ra1 {[%clk 0:02:30]}  f5 {[%clk 0:02:08]} 25. f3 {[%clk 0:02:25]}  fxe4 {[%clk 0:02:06]} 26. Nxe4 {[%clk 0:02:25]}  Nxe4 {[%clk 0:02:05]} 27. fxe4 {[%clk 0:02:26]}  Rf8 {[%clk 0:02:05]} 28. Kd1 {[%clk 0:02:07]}  Rf2 {[%clk 0:02:04]} 29. Ke1 {[%clk 0:02:08]}  Rg2 {[%clk 0:02:05]} 30. b3 {[%clk 0:01:58]}  a3 {[%clk 0:01:55]} 31. c4 {[%clk 0:01:53]}  bxc4 {[%clk 0:01:54]} 32. bxc4 {[%clk 0:01:54]}  Kd6 {[%clk 0:01:51]} 33. Rb1 {[%clk 0:01:48]}  Kc5 {[%clk 0:01:49]} 34. Rb3 {[%clk 0:01:48]}  Rxe2+ {[%clk 0:01:49]} 35. Kxe2 {[%clk 0:01:44]}  Bxc4+ {[%clk 0:01:49]} 36. Rd3 {[%clk 0:01:45]}  Kb4 {[%clk 0:01:43]} 37. Nh2 {[%clk 0:01:43]}  Bxa2 {[%clk 0:01:37]} 38. Rd1 {[%clk 0:01:44]}  Bc4+ {[%clk 0:01:35]} 39. Kf2 {[%clk 0:01:44]}  a2 {[%clk 0:01:29]} 40. Nf3 {[%clk 0:01:44]}  Bb3 {[%clk 0:01:25]} 41. Ra1 {[%clk 0:01:38]}  c5 {[%clk 0:01:18]} 42. Nxe5 {[%clk 0:01:26]}  Bg7 {[%clk 0:01:17]} 43. Nd3+ {[%clk 0:01:26]}  Kc4 {[%clk 0:01:13]} 44. Rxa2 {[%clk 0:01:13]}  Bxa2 {[%clk 0:01:12]} 45. Nf4 {[%clk 0:01:14]}  Bb1 {[%clk 0:01:10]} 46. Nxg6 {[%clk 0:01:15]}  Bxe4 {[%clk 0:01:07]} 47. Nf4 {[%clk 0:01:16]}  Bd4+ {[%clk 0:01:06]} 48. Ke2 {[%clk 0:01:15]}  Kb3 {[%clk 0:01:04]} 49. Nxh5 {[%clk 0:01:16]}  c4 {[%clk 0:01:04]} 50. Nf4 {[%clk 0:01:12]}  c3 {[%clk 0:01:04]} 51. Ne6 {[%clk 0:01:12]}  Bb6 {[%clk 0:01:02]} 52. Ng5 {[%clk 0:00:57]}  c2 {[%clk 0:01:01]} 53. Nxe4 {[%clk 0:00:58]}  c1=Q {[%clk 0:01:01]} 54. Nd2+ {[%clk 0:00:58]}  Kc2 {[%clk 0:01:01]} 55. Ne4 {[%clk 0:00:58]}  Qd1# {[%clk 0:01:00]} 0-1


[Site "https://www.chess.com"]

[Event "Titled Tuesday Blitz June 21 Early 2022"]
[White "Sadhwani, Raunak"]
[Black "Nesterov, Arseniy"]
[WhiteFideId "35093487"]
[BlackFideId "24198455"]
[WhiteElo "2616"]
[BlackElo "2489"]
[Result "1-0"]
[Round "09"]
[TimeControl "180+1"]
[Date "2022.06.21"]
[WhiteClock "0:00:05"]
[BlackClock "0:00:05"]

1. e4 {[%clk 0:03:00]}  e5 {[%clk 0:02:59]} 2. Nf3 {[%clk 0:03:01]}  Nc6 {[%clk 0:03:00]} 3. Bc4 {[%clk 0:03:01]}  Nf6 {[%clk 0:03:00]} 4. d3 {[%clk 0:03:01]}  Bc5 {[%clk 0:03:00]} 5. a4 {[%clk 0:03:01]}  d6 {[%clk 0:03:00]} 6. a5 {[%clk 0:03:02]}  a6 {[%clk 0:02:54]} 7. O-O {[%clk 0:03:01]}  Be6 {[%clk 0:02:50]} 8. Bxe6 {[%clk 0:03:00]}  fxe6 {[%clk 0:02:51]} 9. c3 {[%clk 0:03:01]}  O-O {[%clk 0:02:49]} 10. Be3 {[%clk 0:02:52]}  Bxe3 {[%clk 0:02:49]} 11. fxe3 {[%clk 0:02:53]}  d5 {[%clk 0:02:46]} 12. Nbd2 {[%clk 0:02:49]}  dxe4 {[%clk 0:02:46]} 13. Nxe4 {[%clk 0:02:50]}  Nxe4 {[%clk 0:02:46]} 14. dxe4 {[%clk 0:02:51]}  Qxd1 {[%clk 0:02:46]} 15. Rfxd1 {[%clk 0:02:52]}  Rad8 {[%clk 0:02:21]} 16. b4 {[%clk 0:02:50]}  h6 {[%clk 0:02:14]} 17. Kf2 {[%clk 0:02:45]}  Kf7 {[%clk 0:02:13]} 18. Ke2 {[%clk 0:02:44]}  Ke7 {[%clk 0:02:13]} 19. h4 {[%clk 0:02:43]}  Rxd1 {[%clk 0:02:03]} 20. Rxd1 {[%clk 0:02:44]}  Rd8 {[%clk 0:02:03]} 21. Rh1 {[%clk 0:02:44]}  Rc8 {[%clk 0:01:37]} 22. Rf1 {[%clk 0:02:36]}  b6 {[%clk 0:01:34]} 23. axb6 {[%clk 0:02:06]}  cxb6 {[%clk 0:01:35]} 24. Rb1 {[%clk 0:02:07]}  a5 {[%clk 0:01:22]} 25. Nd2 {[%clk 0:02:00]}  axb4 {[%clk 0:01:19]} 26. cxb4 {[%clk 0:02:01]}  b5 {[%clk 0:01:18]} 27. Nf3 {[%clk 0:01:59]}  Ra8 {[%clk 0:01:17]} 28. Ne1 {[%clk 0:01:50]}  Ra2+ {[%clk 0:01:12]} 29. Kf3 {[%clk 0:01:47]}  Rd2 {[%clk 0:01:08]} 30. Rb3 {[%clk 0:01:46]}  Rd1 {[%clk 0:00:51]} 31. Nd3 {[%clk 0:01:45]}  Kd6 {[%clk 0:00:48]} 32. Nc5 {[%clk 0:01:38]}  Ke7 {[%clk 0:00:36]} 33. Ra3 {[%clk 0:01:09]}  Rc1 {[%clk 0:00:22]} 34. Ra6 {[%clk 0:01:03]}  Nxb4 {[%clk 0:00:18]} 35. Rxe6+ {[%clk 0:01:03]}  Kf7 {[%clk 0:00:19]} 36. Rxe5 {[%clk 0:01:04]}  Nc6 {[%clk 0:00:18]} 37. Rf5+ {[%clk 0:01:04]}  Ke7 {[%clk 0:00:16]} 38. Nd3 {[%clk 0:01:01]}  Rc3 {[%clk 0:00:13]} 39. Ke2 {[%clk 0:00:47]}  Rc2+ {[%clk 0:00:13]} 40. Kf1 {[%clk 0:00:48]}  b4 {[%clk 0:00:09]} 41. Rb5 {[%clk 0:00:47]}  Rc4 {[%clk 0:00:06]} 42. e5 {[%clk 0:00:43]}  Ke6 {[%clk 0:00:05]} 43. Nf4+ {[%clk 0:00:42]}  Kf5 {[%clk 0:00:05]} 44. e6+ {[%clk 0:00:35]}  Kf6 {[%clk 0:00:05]} 45. Kf2 {[%clk 0:00:30]}  g5 {[%clk 0:00:04]} 46. hxg5+ {[%clk 0:00:17]}  hxg5 {[%clk 0:00:05]} 47. Nh3 {[%clk 0:00:16]}  Ne5 {[%clk 0:00:02]} 48. Nxg5 {[%clk 0:00:11]}  Ng4+ {[%clk 0:00:03]} 49. Ke2 {[%clk 0:00:09]}  b3 {[%clk 0:00:01]} 50. Nf3 {[%clk 0:00:05]}  Kxe6 {[%clk 0:00:01]} 51. Rxb3 {[%clk 0:00:05]}  Rc2+ {[%clk 0:00:02]} 52. Nd2 {[%clk 0:00:05]}  Ne5 {[%clk 0:00:01]} 53. Rb6+ {[%clk 0:00:05]}  Kd5 {[%clk 0:00:01]} 54. Rb5+ {[%clk 0:00:05]}  Ke6 {[%clk 0:00:01]} 55. Rb4 {[%clk 0:00:05]}  Ra2 {[%clk 0:00:02]} 56. Rd4 {[%clk 0:00:05]}  Kf5 {[%clk 0:00:03]} 57. Rf4+ {[%clk 0:00:06]}  Ke6 {[%clk 0:00:03]} 58. Rd4 {[%clk 0:00:06]}  Kf5 {[%clk 0:00:03]} 59. Kf2 {[%clk 0:00:04]}  Ng4+ {[%clk 0:00:03]} 60. Kf3 {[%clk 0:00:04]}  Ne5+ {[%clk 0:00:04]} 61. Kg3 {[%clk 0:00:05]}  Ra3 {[%clk 0:00:03]} 62. Rf4+ {[%clk 0:00:05]}  Ke6 {[%clk 0:00:04]} 63. Re4 {[%clk 0:00:04]}  Kf5 {[%clk 0:00:05]} 64. Rxe5+ {[%clk 0:00:04]}  Kxe5 {[%clk 0:00:05]} 65. Nc4+ {[%clk 0:00:05]} 1-0


[Site "https://www.chess.com"]

[Event "Titled Tuesday Blitz June 21 Early 2022"]
[White "Samunenkov, Ihor"]
[Black "Sargsyan, Anna M."]
[WhiteFideId "14187086"]
[BlackFideId "13308130"]
[WhiteElo "2409"]
[BlackElo "2271"]
[Result "1-0"]
[Round "09"]
[TimeControl "180+1"]
[Date "2022.06.21"]
[WhiteClock "0:00:03"]
[BlackClock "0:00:01"]

1. e4 {[%clk 0:03:00]}  c6 {[%clk 0:02:51]} 2. d4 {[%clk 0:02:55]}  d5 {[%clk 0:02:52]} 3. exd5 {[%clk 0:02:44]}  cxd5 {[%clk 0:02:53]} 4. Bd3 {[%clk 0:02:44]}  Nc6 {[%clk 0:02:53]} 5. c3 {[%clk 0:02:45]}  Nf6 {[%clk 0:02:53]} 6. Bf4 {[%clk 0:02:36]}  Bg4 {[%clk 0:02:53]} 7. Qb3 {[%clk 0:02:36]}  e5 {[%clk 0:02:52]} 8. Bxe5 {[%clk 0:01:30]}  Qe7 {[%clk 0:02:45]} 9. Nd2 {[%clk 0:01:13]}  Nxe5 {[%clk 0:02:33]} 10. dxe5 {[%clk 0:01:14]}  Qxe5+ {[%clk 0:02:33]} 11. Ne2 {[%clk 0:00:57]}  O-O-O {[%clk 0:02:32]} 12. O-O {[%clk 0:00:56]}  Bd6 {[%clk 0:02:29]} 13. Ng3 {[%clk 0:00:43]}  Qg5 {[%clk 0:02:27]} 14. Qc2 {[%clk 0:00:36]}  h5 {[%clk 0:02:26]} 15. Nf5 {[%clk 0:00:33]}  Bf4 {[%clk 0:02:18]} 16. Nb3 {[%clk 0:00:27]}  h4 {[%clk 0:01:57]} 17. Nbd4 {[%clk 0:00:12]}  Kb8 {[%clk 0:01:54]} 18. Rfe1 {[%clk 0:00:10]}  Nh5 {[%clk 0:01:17]} 19. Be2 {[%clk 0:00:08]}  Bxe2 {[%clk 0:01:06]} 20. Qxe2 {[%clk 0:00:08]}  Bc7 {[%clk 0:01:06]} 21. Qf3 {[%clk 0:00:04]}  g6 {[%clk 0:01:01]} 22. Ne3 {[%clk 0:00:04]}  Nf4 {[%clk 0:00:57]} 23. Rad1 {[%clk 0:00:04]}  a6 {[%clk 0:00:52]} 24. Qg4 {[%clk 0:00:04]}  Qh6 {[%clk 0:00:50]} 25. Nf3 {[%clk 0:00:04]}  f5 {[%clk 0:00:29]} 26. Qg5 {[%clk 0:00:04]}  Qf8 {[%clk 0:00:16]} 27. Nc2 {[%clk 0:00:04]}  Rh5 {[%clk 0:00:15]} 28. Qe7 {[%clk 0:00:04]}  Qh8 {[%clk 0:00:08]} 29. Nb4 {[%clk 0:00:04]}  Bd6 {[%clk 0:00:07]} 30. Qe3 {[%clk 0:00:03]}  Qh6 {[%clk 0:00:03]} 31. Nxa6+ {[%clk 0:00:03]}  bxa6 {[%clk 0:00:02]} 32. Qb6+ {[%clk 0:00:03]}  Kc8 {[%clk 0:00:02]} 33. Qxa6+ {[%clk 0:00:03]}  Kd7 {[%clk 0:00:02]} 34. Qb7+ {[%clk 0:00:02]}  Bc7 {[%clk 0:00:01]} 35. Ne5+ {[%clk 0:00:03]} 1-0


[Site "https://www.chess.com"]

[Event "Titled Tuesday Blitz June 21 Early 2022"]
[White "Shuvalova, Polina"]
[Black "Korchmar, Vasiliy"]
[WhiteFideId "24171760"]
[BlackFideId "24131750"]
[WhiteElo "2330"]
[BlackElo "2370"]
[Result "0-1"]
[Round "09"]
[TimeControl "180+1"]
[Date "2022.06.21"]
[WhiteClock "0:02:04"]
[BlackClock "0:01:57"]

1. d4 {[%clk 0:02:57]}  d5 {[%clk 0:02:59]} 2. Nc3 {[%clk 0:02:56]}  Nf6 {[%clk 0:02:58]} 3. Bg5 {[%clk 0:02:51]}  Bf5 {[%clk 0:02:56]} 4. Bxf6 {[%clk 0:02:50]}  exf6 {[%clk 0:02:51]} 5. e3 {[%clk 0:02:50]}  c6 {[%clk 0:02:49]} 6. Bd3 {[%clk 0:02:51]}  Bg6 {[%clk 0:02:49]} 7. Nge2 {[%clk 0:02:51]}  Bd6 {[%clk 0:02:48]} 8. Nf4 {[%clk 0:02:50]}  Nd7 {[%clk 0:02:43]} 9. Nce2 {[%clk 0:02:48]}  Qb6 {[%clk 0:02:36]} 10. O-O {[%clk 0:02:48]}  O-O {[%clk 0:02:28]} 11. c4 {[%clk 0:02:45]}  dxc4 {[%clk 0:02:25]} 12. Bxc4 {[%clk 0:02:42]}  Qxb2 {[%clk 0:02:25]} 13. Nxg6 {[%clk 0:02:38]}  hxg6 {[%clk 0:02:25]} 14. Rb1 {[%clk 0:02:38]}  Qa3 {[%clk 0:02:24]} 15. Rxb7 {[%clk 0:02:37]}  Nb6 {[%clk 0:02:25]} 16. Bb3 {[%clk 0:02:36]}  Qa6 {[%clk 0:02:24]} 17. Rxb6 {[%clk 0:02:32]}  axb6 {[%clk 0:02:25]} 18. Nc3 {[%clk 0:02:24]}  Rfe8 {[%clk 0:02:17]} 19. Qf3 {[%clk 0:02:23]}  Rac8 {[%clk 0:02:09]} 20. h4 {[%clk 0:02:23]}  Bh2+ {[%clk 0:02:08]} 21. Kxh2 {[%clk 0:02:17]}  Qxf1 {[%clk 0:02:09]} 22. Qg3 {[%clk 0:02:11]}  Qd3 {[%clk 0:02:04]} 23. Na4 {[%clk 0:02:07]}  Qb5 {[%clk 0:01:58]} 24. Qxg6 {[%clk 0:02:04]}  Qxb3 {[%clk 0:01:57]} 0-1


[Site "https://www.chess.com"]

[Event "Titled Tuesday Blitz June 21 Early 2022"]
[White "Steinberg, Nitzan"]
[Black "Yang, Kaiqi"]
[WhiteFideId "2801795"]
[BlackFideId "8604398"]
[WhiteElo "2471"]
[BlackElo "2373"]
[Result "1/2-1/2"]
[Round "09"]
[TimeControl "180+1"]
[Date "2022.06.21"]
[WhiteClock "0:00:10"]
[BlackClock "0:00:12"]

1. e4 {[%clk 0:03:00]}  c5 {[%clk 0:02:59]} 2. Nf3 {[%clk 0:03:01]}  e6 {[%clk 0:02:59]} 3. d4 {[%clk 0:03:01]}  cxd4 {[%clk 0:03:00]} 4. Nxd4 {[%clk 0:03:02]}  a6 {[%clk 0:03:01]} 5. Bd3 {[%clk 0:03:00]}  Bc5 {[%clk 0:03:00]} 6. Nb3 {[%clk 0:03:00]}  Ba7 {[%clk 0:03:01]} 7. Nc3 {[%clk 0:03:00]}  Nc6 {[%clk 0:02:59]} 8. Qe2 {[%clk 0:03:00]}  d6 {[%clk 0:02:55]} 9. Be3 {[%clk 0:02:59]}  Nf6 {[%clk 0:02:51]} 10. O-O {[%clk 0:02:58]}  O-O {[%clk 0:02:51]} 11. Rad1 {[%clk 0:02:57]}  Bxe3 {[%clk 0:02:46]} 12. Qxe3 {[%clk 0:02:57]}  e5 {[%clk 0:02:43]} 13. Be2 {[%clk 0:02:45]}  Qc7 {[%clk 0:02:32]} 14. f4 {[%clk 0:02:43]}  exf4 {[%clk 0:02:31]} 15. Rxf4 {[%clk 0:02:43]}  Be6 {[%clk 0:02:19]} 16. Rxf6 {[%clk 0:02:39]}  gxf6 {[%clk 0:02:20]} 17. Qh6 {[%clk 0:02:33]}  Qe7 {[%clk 0:02:08]} 18. Rf1 {[%clk 0:02:05]}  Ne5 {[%clk 0:02:07]} 19. Nd4 {[%clk 0:02:03]}  Rfe8 {[%clk 0:01:43]} 20. Rf4 {[%clk 0:01:25]}  Ng6 {[%clk 0:01:30]} 21. Rf3 {[%clk 0:01:20]}  Qf8 {[%clk 0:01:13]} 22. Qd2 {[%clk 0:01:15]}  Kh8 {[%clk 0:01:10]} 23. Rg3 {[%clk 0:01:10]}  Rac8 {[%clk 0:01:06]} 24. Qe3 {[%clk 0:01:05]}  b5 {[%clk 0:01:02]} 25. a3 {[%clk 0:01:05]}  Bc4 {[%clk 0:00:49]} 26. Bg4 {[%clk 0:01:01]}  Rc5 {[%clk 0:00:47]} 27. Qf2 {[%clk 0:01:00]}  Qe7 {[%clk 0:00:39]} 28. Bf5 {[%clk 0:00:51]}  Qe5 {[%clk 0:00:35]} 29. Rg4 {[%clk 0:00:37]}  a5 {[%clk 0:00:34]} 30. b4 {[%clk 0:00:35]}  axb4 {[%clk 0:00:30]} 31. axb4 {[%clk 0:00:36]}  Rc7 {[%clk 0:00:30]} 32. h4 {[%clk 0:00:35]}  Be6 {[%clk 0:00:27]} 33. Ncxb5 {[%clk 0:00:35]}  Rc4 {[%clk 0:00:18]} 34. h5 {[%clk 0:00:34]}  Ne7 {[%clk 0:00:10]} 35. h6 {[%clk 0:00:31]}  Bxf5 {[%clk 0:00:07]} 36. exf5 {[%clk 0:00:31]}  Nxf5 {[%clk 0:00:01]} 37. Rf4 {[%clk 0:00:17]}  Ne3 {[%clk 0:00:01]} 38. Rxf6 {[%clk 0:00:13]}  Ng4 {[%clk 0:00:01]} 39. Nxd6 {[%clk 0:00:08]}  Qxf6 {[%clk 0:00:01]} 40. Qxf6+ {[%clk 0:00:04]}  Nxf6 {[%clk 0:00:02]} 41. Nxe8 {[%clk 0:00:05]}  Nxe8 {[%clk 0:00:02]} 42. c3 {[%clk 0:00:04]}  Rxc3 {[%clk 0:00:03]} 43. b5 {[%clk 0:00:03]}  Rc1+ {[%clk 0:00:03]} 44. Kf2 {[%clk 0:00:04]}  Rc4 {[%clk 0:00:04]} 45. Ke3 {[%clk 0:00:04]}  Rb4 {[%clk 0:00:04]} 46. Kd3 {[%clk 0:00:04]}  Nd6 {[%clk 0:00:05]} 47. Kc3 {[%clk 0:00:05]}  Rxb5 {[%clk 0:00:05]} 48. Nxb5 {[%clk 0:00:05]}  Nxb5+ {[%clk 0:00:06]} 49. Kc4 {[%clk 0:00:06]}  Nc7 {[%clk 0:00:07]} 50. g4 {[%clk 0:00:06]}  Ne6 {[%clk 0:00:08]} 51. Kd5 {[%clk 0:00:07]}  Kg8 {[%clk 0:00:09]} 52. Ke5 {[%clk 0:00:08]}  Ng5 {[%clk 0:00:09]} 53. Kf6 {[%clk 0:00:09]}  Ne6 {[%clk 0:00:09]} 54. Kf5 {[%clk 0:00:08]}  Kf8 {[%clk 0:00:10]} 55. Kf6 {[%clk 0:00:08]}  Nd4 {[%clk 0:00:10]} 56. g5 {[%clk 0:00:09]}  Nf3 {[%clk 0:00:10]} 57. Kf5 {[%clk 0:00:09]}  Nh4+ {[%clk 0:00:11]} 58. Kg4 {[%clk 0:00:09]}  Ng6 {[%clk 0:00:10]} 59. Kf5 {[%clk 0:00:10]}  Ke7 {[%clk 0:00:11]} 60. Kg4 {[%clk 0:00:10]}  Ke6 {[%clk 0:00:12]} 61. Kh5 {[%clk 0:00:10]}  Kf5 {[%clk 0:00:12]} 1/2-1/2


[Site "https://www.chess.com"]

[Event "Titled Tuesday Blitz June 21 Early 2022"]
[White "Stribuk, Artiom"]
[Black "Lagno, Kateryna"]
[WhiteFideId "13515659"]
[BlackFideId "14109336"]
[WhiteElo "2259"]
[BlackElo "2522"]
[Result "0-1"]
[Round "09"]
[TimeControl "180+1"]
[Date "2022.06.21"]
[WhiteClock "0:00:02"]
[BlackClock "0:00:07"]

1. d4 {[%clk 0:03:00]}  Nf6 {[%clk 0:02:57]} 2. c4 {[%clk 0:03:01]}  g6 {[%clk 0:02:57]} 3. Nf3 {[%clk 0:02:58]}  Bg7 {[%clk 0:02:56]} 4. g3 {[%clk 0:02:59]}  O-O {[%clk 0:02:55]} 5. Bg2 {[%clk 0:02:59]}  d5 {[%clk 0:02:56]} 6. cxd5 {[%clk 0:02:59]}  Nxd5 {[%clk 0:02:57]} 7. O-O {[%clk 0:03:00]}  Nb6 {[%clk 0:02:57]} 8. Nc3 {[%clk 0:02:59]}  Nc6 {[%clk 0:02:58]} 9. e3 {[%clk 0:02:59]}  Re8 {[%clk 0:02:58]} 10. h3 {[%clk 0:02:58]}  Rb8 {[%clk 0:02:45]} 11. Kh2 {[%clk 0:02:33]}  e5 {[%clk 0:02:39]} 12. d5 {[%clk 0:02:33]}  e4 {[%clk 0:02:39]} 13. dxc6 {[%clk 0:02:31]}  exf3 {[%clk 0:02:39]} 14. Bxf3 {[%clk 0:02:26]}  Qf6 {[%clk 0:02:32]} 15. cxb7 {[%clk 0:02:19]}  Bxb7 {[%clk 0:02:32]} 16. Bxb7 {[%clk 0:02:19]}  Rxb7 {[%clk 0:02:33]} 17. Qc2 {[%clk 0:02:12]}  Qf3 {[%clk 0:02:26]} 18. Ne2 {[%clk 0:02:08]}  c5 {[%clk 0:02:21]} 19. Rb1 {[%clk 0:02:03]}  c4 {[%clk 0:02:17]} 20. Ng1 {[%clk 0:01:55]}  Qd5 {[%clk 0:02:04]} 21. Rd1 {[%clk 0:01:49]}  Qc6 {[%clk 0:01:43]} 22. Bd2 {[%clk 0:01:49]}  Na4 {[%clk 0:01:39]} 23. b3 {[%clk 0:01:45]}  Qf6 {[%clk 0:01:24]} 24. Be1 {[%clk 0:01:34]}  Nb2 {[%clk 0:01:10]} 25. bxc4 {[%clk 0:01:12]}  Reb8 {[%clk 0:00:55]} 26. Rd4 {[%clk 0:01:09]}  Qa6 {[%clk 0:00:51]} 27. Rd2 {[%clk 0:00:56]}  h5 {[%clk 0:00:36]} 28. h4 {[%clk 0:00:52]}  Nxc4 {[%clk 0:00:32]} 29. Rxb7 {[%clk 0:00:51]}  Rxb7 {[%clk 0:00:33]} 30. Rd8+ {[%clk 0:00:50]}  Kh7 {[%clk 0:00:33]} 31. Nf3 {[%clk 0:00:46]}  Rb2 {[%clk 0:00:31]} 32. Ng5+ {[%clk 0:00:43]}  Kh6 {[%clk 0:00:31]} 33. Nxf7+ {[%clk 0:00:43]}  Kh7 {[%clk 0:00:32]} 34. Ng5+ {[%clk 0:00:37]}  Kh6 {[%clk 0:00:31]} 35. Qe4 {[%clk 0:00:32]}  Qf6 {[%clk 0:00:29]} 36. Rd7 {[%clk 0:00:19]}  Ne5 {[%clk 0:00:26]} 37. Rxg7 {[%clk 0:00:16]}  Kxg7 {[%clk 0:00:22]} 38. Kg2 {[%clk 0:00:14]}  Kg8 {[%clk 0:00:10]} 39. Nh3 {[%clk 0:00:14]}  Qc6 {[%clk 0:00:09]} 40. Qxc6 {[%clk 0:00:10]}  Nxc6 {[%clk 0:00:10]} 41. a4 {[%clk 0:00:10]}  Ra2 {[%clk 0:00:10]} 42. Nf4 {[%clk 0:00:10]}  Kf7 {[%clk 0:00:10]} 43. Nd5 {[%clk 0:00:02]}  Rxa4 {[%clk 0:00:11]} 44. Bc3 {[%clk 0:00:03]}  a5 {[%clk 0:00:10]} 45. Kf3 {[%clk 0:00:03]}  Rc4 {[%clk 0:00:10]} 46. Bb2 {[%clk 0:00:03]}  a4 {[%clk 0:00:11]} 47. e4 {[%clk 0:00:03]}  Rc2 {[%clk 0:00:09]} 48. Ba3 {[%clk 0:00:02]}  Ra2 {[%clk 0:00:09]} 49. Bd6 {[%clk 0:00:02]}  a3 {[%clk 0:00:09]} 50. Ke3 {[%clk 0:00:02]}  Ra1 {[%clk 0:00:09]} 51. Bxa3 {[%clk 0:00:03]}  Rxa3+ {[%clk 0:00:09]} 52. Kf4 {[%clk 0:00:03]}  Ne7 {[%clk 0:00:09]} 53. Ne3 {[%clk 0:00:03]}  Ra2 {[%clk 0:00:09]} 54. f3 {[%clk 0:00:03]}  Nc6 {[%clk 0:00:08]} 55. Nc4 {[%clk 0:00:03]}  Nd4 {[%clk 0:00:08]} 56. Ke3 {[%clk 0:00:02]}  Ne6 {[%clk 0:00:07]} 57. Ne5+ {[%clk 0:00:02]}  Kf6 {[%clk 0:00:06]} 58. Nd7+ {[%clk 0:00:02]}  Ke7 {[%clk 0:00:07]} 59. Ne5 {[%clk 0:00:03]}  Ra3+ {[%clk 0:00:07]} 60. Kf2 {[%clk 0:00:03]}  Nd4 {[%clk 0:00:07]} 61. Nxg6+ {[%clk 0:00:02]}  Kf6 {[%clk 0:00:07]} 62. Nf4 {[%clk 0:00:02]}  Nxf3 {[%clk 0:00:07]} 63. Kg2 {[%clk 0:00:03]}  Ne5 {[%clk 0:00:07]} 64. Nxh5+ {[%clk 0:00:03]}  Ke6 {[%clk 0:00:06]} 65. Nf4+ {[%clk 0:00:04]}  Kd6 {[%clk 0:00:07]} 66. h5 {[%clk 0:00:04]}  Ng4 {[%clk 0:00:07]} 67. Kh3 {[%clk 0:00:04]}  Nf2+ {[%clk 0:00:07]} 68. Kh4 {[%clk 0:00:05]}  Nxe4 {[%clk 0:00:08]} 69. h6 {[%clk 0:00:05]}  Nf6 {[%clk 0:00:08]} 70. Kg5 {[%clk 0:00:04]}  Ke7 {[%clk 0:00:07]} 71. Ng6+ {[%clk 0:00:04]}  Kf7 {[%clk 0:00:07]} 72. g4 {[%clk 0:00:01]}  Ra5+ {[%clk 0:00:07]} 73. Kf4 {[%clk 0:00:02]}  Kxg6 {[%clk 0:00:07]} 0-1


[Site "https://www.chess.com"]